[Event "*** Titled Tuesday Blitz"]
[Site "Chess.com"]
[Date "2018.01.02"]
[Round "8"]
[White "DrVelja"]
[Black "Babbelbox"]
[Result "1-0"]
[WhiteElo "2555"]
[BlackElo "2433"]
[TimeControl "180+2"]
[EndTime "14:48:30 PST"]
[Termination "DrVelja won by checkmate"]

1. e4 {[%clk 0:03:01.9]} 1... e6 {[%clk 0:03:00.9]} 2. d4 {[%clk 0:03:02.6]}
2... d5 {[%clk 0:03:02.8]} 3. Nc3 {[%clk 0:03:04.3]} 3... Bb4 {[%clk 0:03:02.8]}
4. Ne2 {[%clk 0:03:04.2]} 4... Nf6 {[%clk 0:03:03.7]} 5. Bg5 {[%clk 0:03:01.5]}
5... dxe4 {[%clk 0:02:58.8]} 6. a3 {[%clk 0:02:59.9]} 6... Be7 {[%clk
0:02:58.2]} 7. Bxf6 {[%clk 0:02:56.4]} 7... gxf6 {[%clk 0:02:59.1]} 8. Nxe4
{[%clk 0:02:58.3]} 8... b6 {[%clk 0:02:56.4]} 9. g3 {[%clk 0:02:54.2]} 9... f5
{[%clk 0:02:52.5]} 10. N4c3 {[%clk 0:02:51.2]} 10... Bb7 {[%clk 0:02:53.3]} 11.
Rg1 {[%clk 0:02:52.9]} 11... Nd7 {[%clk 0:02:48.7]} 12. Bg2 {[%clk 0:02:53.8]}
12... Bxg2 {[%clk 0:02:49]} 13. Rxg2 {[%clk 0:02:55.7]} 13... Nf6 {[%clk
0:02:46.7]} 14. Qd3 {[%clk 0:02:57.1]} 14... Qd7 {[%clk 0:02:42.8]} 15. O-O-O
{[%clk 0:02:57.1]} 15... O-O-O {[%clk 0:02:43.7]} 16. Qf3 {[%clk 0:02:34.5]}
16... Kb8 {[%clk 0:02:43.2]} 17. Nf4 {[%clk 0:02:31]} 17... Bd6 {[%clk
0:02:22.2]} 18. Rgg1 {[%clk 0:02:27.2]} 18... h5 {[%clk 0:02:22.4]} 19. h4
{[%clk 0:02:27]} 19... Ng4 {[%clk 0:02:23.3]} 20. Nd3 {[%clk 0:02:22.8]} 20...
Qe7 {[%clk 0:02:20.2]} 21. Qe2 {[%clk 0:01:59.3]} 21... Qf6 {[%clk 0:01:50.5]}
22. f3 {[%clk 0:01:46.1]} 22... Qh6+ {[%clk 0:01:46.7]} 23. Kb1 {[%clk
0:01:43.2]} 23... Ne3 {[%clk 0:01:47.5]} 24. Rde1 {[%clk 0:01:30.9]} 24... Nc4
{[%clk 0:01:48.2]} 25. f4 {[%clk 0:01:23.9]} 25... f6 {[%clk 0:01:13]} 26. Rg2
{[%clk 0:00:54.3]} 26... Rhe8 {[%clk 0:01:11.9]} 27. Qf3 {[%clk 0:00:52.7]}
27... e5 {[%clk 0:00:58.3]} 28. dxe5 {[%clk 0:00:35]} 28... fxe5 {[%clk
0:01:00.2]} 29. fxe5 {[%clk 0:00:36.5]} 29... Nxe5 {[%clk 0:00:22]} 30. Nxe5
{[%clk 0:00:35.6]} 30... Rxe5 {[%clk 0:00:19.9]} 31. Rge2 {[%clk 0:00:26]} 31...
Rde8 {[%clk 0:00:18.1]} 32. Rxe5 {[%clk 0:00:18.5]} 32... Rxe5 {[%clk 0:00:20]}
33. Rd1 {[%clk 0:00:19.5]} 33... Qe3 {[%clk 0:00:18.2]} 34. Qc6 {[%clk
0:00:20.4]} 34... Qxg3 {[%clk 0:00:17.9]} 35. Nb5 {[%clk 0:00:20.3]} 35... Re1
{[%clk 0:00:18.8]} 36. Rxe1 {[%clk 0:00:09.7]} 36... Qxe1+ {[%clk 0:00:20.7]}
37. Ka2 {[%clk 0:00:11.6]} 37... Qe6+ {[%clk 0:00:20.5]} 38. c4 {[%clk
0:00:12.9]} 38... f4 {[%clk 0:00:20.9]} 39. Nd4 {[%clk 0:00:12.9]} 39... Qf7
{[%clk 0:00:19.5]} 40. Kb3 {[%clk 0:00:05.2]} 40... Bc5 {[%clk 0:00:15.4]} 41.
Nf3 {[%clk 0:00:06.5]} 41... Qe7 {[%clk 0:00:15.1]} 42. Qd5 {[%clk 0:00:05.9]}
42... a5 {[%clk 0:00:15.2]} 43. Ka4 {[%clk 0:00:06.3]} 43... Qe8+ {[%clk
0:00:15.8]} 44. Kb3 {[%clk 0:00:07.8]} 44... a4+ {[%clk 0:00:16.7]} 45. Ka2
{[%clk 0:00:09.1]} 45... Qe2 {[%clk 0:00:17]} 46. Ne5 {[%clk 0:00:09.8]} 46...
Qc2 {[%clk 0:00:13]} 47. Qd8+ {[%clk 0:00:09.7]} 47... Kb7 {[%clk 0:00:13]} 48.
Qd5+ {[%clk 0:00:11.3]} 48... Ka7 {[%clk 0:00:13.4]} 49. Nc6+ {[%clk 0:00:12.2]}
49... Ka6 {[%clk 0:00:14.5]} 50. Nb4+ {[%clk 0:00:11.9]} 50... Bxb4 {[%clk
0:00:14.9]} 51. Qa8# {[%clk 0:00:13.5]} 1-0

[Event "*** Titled Tuesday Blitz"]
[Site "Chess.com"]
[Date "2018.01.02"]
[Round "8"]
[White "EndgameGrinder"]
[Black "ZapataCharlesS"]
[Result "0-1"]
[WhiteElo "2465"]
[BlackElo "2638"]
[TimeControl "180+2"]
[EndTime "14:48:36 PST"]
[Termination "ZapataCharlesS won by resignation"]

1. e4 {[%clk 0:03:01.9]} 1... c5 {[%clk 0:02:56.6]} 2. Nf3 {[%clk 0:03:02.8]}
2... e6 {[%clk 0:02:58.1]} 3. d4 {[%clk 0:03:04.2]} 3... cxd4 {[%clk 0:02:58.6]}
4. Nxd4 {[%clk 0:03:06.1]} 4... Nf6 {[%clk 0:03:00.3]} 5. Nc3 {[%clk 0:03:07.3]}
5... Nc6 {[%clk 0:02:59.6]} 6. Ndb5 {[%clk 0:03:05.6]} 6... Bc5 {[%clk
0:03:00.6]} 7. Bf4 {[%clk 0:03:00.8]} 7... O-O {[%clk 0:02:58.7]} 8. Bd6 {[%clk
0:03:00.7]} 8... Qb6 {[%clk 0:02:52.7]} 9. Bxc5 {[%clk 0:02:54.8]} 9... Qxc5
{[%clk 0:02:54.6]} 10. Qd6 {[%clk 0:02:55.5]} 10... Qb6 {[%clk 0:02:49.5]} 11.
Qc7 {[%clk 0:02:31.4]} 11... Qc5 {[%clk 0:02:49.9]} 12. Qd6 {[%clk 0:02:11.4]}
12... Qh5 {[%clk 0:02:46.8]} 13. Be2 {[%clk 0:01:58.2]} 13... Qg6 {[%clk
0:02:47]} 14. f3 {[%clk 0:01:49.6]} 14... a6 {[%clk 0:02:41.6]} 15. Nd4 {[%clk
0:01:40.7]} 15... Qxg2 {[%clk 0:01:55.7]} 16. O-O-O {[%clk 0:01:29.1]} 16...
Nxd4 {[%clk 0:01:56.2]} 17. Qxd4 {[%clk 0:01:29.8]} 17... Qg5+ {[%clk
0:01:57.3]} 18. Kb1 {[%clk 0:01:26.8]} 18... Qf4 {[%clk 0:01:58]} 19. Rhg1
{[%clk 0:01:20.6]} 19... d5 {[%clk 0:01:53]} 20. Bd3 {[%clk 0:00:57.8]} 20... b5
{[%clk 0:01:50.2]} 21. Ne2 {[%clk 0:00:49.3]} 21... Qh6 {[%clk 0:01:04.6]} 22.
e5 {[%clk 0:00:46.2]} 22... Nd7 {[%clk 0:01:01.5]} 23. Rg4 {[%clk 0:00:46]}
23... g6 {[%clk 0:00:59.4]} 24. Rdg1 {[%clk 0:00:39.7]} 24... Bb7 {[%clk
0:00:53.2]} 25. Nf4 {[%clk 0:00:28.5]} 25... Qxh2 {[%clk 0:00:54]} 26. Bxg6
{[%clk 0:00:20.6]} 26... fxg6 {[%clk 0:00:51.9]} 27. Nxg6 {[%clk 0:00:21.4]}
27... hxg6 {[%clk 0:00:50]} 28. Rxg6+ {[%clk 0:00:23.3]} 28... Kf7 {[%clk
0:00:50.3]} 29. Rg7+ {[%clk 0:00:24.4]} 29... Ke8 {[%clk 0:00:49.1]} 30. Qb4
{[%clk 0:00:24.4]} 30... Rf7 {[%clk 0:00:34.6]} 31. Rg8+ {[%clk 0:00:25.6]}
31... Nf8 {[%clk 0:00:35.7]} 32. Qd6 {[%clk 0:00:25.3]} 32... Qh6 {[%clk
0:00:26.3]} 33. a4 {[%clk 0:00:25.5]} 33... Rc8 {[%clk 0:00:20.7]} 34. R1g6
{[%clk 0:00:24.8]} 34... Qxg6 {[%clk 0:00:18.4]} 35. Rxg6 {[%clk 0:00:25.7]}
35... Nxg6 {[%clk 0:00:20.3]} 36. Qxe6+ {[%clk 0:00:27.1]} 36... Ne7 {[%clk
0:00:22]} 37. axb5 {[%clk 0:00:25.6]} 37... axb5 {[%clk 0:00:17.7]} 38. Qg4
{[%clk 0:00:24.9]} 38... Rc6 {[%clk 0:00:16.3]} 39. f4 {[%clk 0:00:25.8]} 39...
Bc8 {[%clk 0:00:16.7]} 40. Qe2 {[%clk 0:00:25.5]} 40... Bf5 {[%clk 0:00:18.1]}
41. Qxb5 {[%clk 0:00:25.6]} 41... Kf8 {[%clk 0:00:19.6]} 42. Ka2 {[%clk
0:00:11.5]} 42... Rxc2 {[%clk 0:00:18.2]} 43. Qb7 {[%clk 0:00:10.8]} 43... Kg7
{[%clk 0:00:18.4]} 44. Qb6 {[%clk 0:00:10.3]} 44... Rc6 {[%clk 0:00:19.2]} 45.
Qb7 {[%clk 0:00:11]} 45... Re6 {[%clk 0:00:19.6]} 46. b4 {[%clk 0:00:10.7]}
46... d4 {[%clk 0:00:21]} 47. Qb6 {[%clk 0:00:08.8]} 47... Rxb6 {[%clk
0:00:21.2]} 0-1

[Event "*** Titled Tuesday Blitz"]
[Site "Chess.com"]
[Date "2018.01.02"]
[Round "8"]
[White "timator"]
[Black "Colombiano07"]
[Result "1-0"]
[WhiteElo "2327"]
[BlackElo "2214"]
[TimeControl "180+2"]
[EndTime "14:48:38 PST"]
[Termination "timator won on time"]

1. Nf3 {[%clk 0:02:54.8]} 1... d5 {[%clk 0:03:00.6]} 2. g3 {[%clk 0:02:47.4]}
2... Bf5 {[%clk 0:02:58.5]} 3. Bg2 {[%clk 0:02:49.3]} 3... e6 {[%clk 0:02:59.7]}
4. O-O {[%clk 0:02:49.8]} 4... Nf6 {[%clk 0:03:00.9]} 5. d3 {[%clk 0:02:50.6]}
5... Be7 {[%clk 0:03:00.9]} 6. Nbd2 {[%clk 0:02:52.5]} 6... h6 {[%clk
0:03:01.6]} 7. Qe1 {[%clk 0:02:50]} 7... O-O {[%clk 0:03:01.2]} 8. e4 {[%clk
0:02:50.2]} 8... Bh7 {[%clk 0:03:02.8]} 9. Qe2 {[%clk 0:02:50.8]} 9... c5 {[%clk
0:03:02.9]} 10. b3 {[%clk 0:02:51.6]} 10... Nc6 {[%clk 0:03:04]} 11. Bb2 {[%clk
0:02:52.9]} 11... b5 {[%clk 0:03:05.3]} 12. a4 {[%clk 0:02:48.7]} 12... a6
{[%clk 0:03:05.3]} 13. Ne5 {[%clk 0:02:43.6]} 13... Nxe5 {[%clk 0:03:05.1]} 14.
Bxe5 {[%clk 0:02:44.6]} 14... dxe4 {[%clk 0:03:02.8]} 15. Nxe4 {[%clk
0:02:43.6]} 15... Rc8 {[%clk 0:03:00.7]} 16. axb5 {[%clk 0:02:41.9]} 16... axb5
{[%clk 0:03:01.2]} 17. Ra7 {[%clk 0:02:30.3]} 17... Nxe4 {[%clk 0:02:53.3]} 18.
dxe4 {[%clk 0:02:27.7]} 18... Bf6 {[%clk 0:02:48.4]} 19. Bxf6 {[%clk 0:02:24]}
19... Qxf6 {[%clk 0:02:49.1]} 20. Qxb5 {[%clk 0:02:23.6]} 20... Qc3 {[%clk
0:02:47.9]} 21. Qe2 {[%clk 0:01:43.4]} 21... Rfd8 {[%clk 0:02:45.4]} 22. Rd1
{[%clk 0:01:42.7]} 22... Rd4 {[%clk 0:02:43.3]} 23. Rd7 {[%clk 0:01:30.3]} 23...
e5 {[%clk 0:02:31.5]} 24. Qa6 {[%clk 0:01:22.4]} 24... Rf8 {[%clk 0:02:15.2]}
25. Qe2 {[%clk 0:01:23.1]} 25... Ra8 {[%clk 0:02:11.9]} 26. Rd5 {[%clk
0:01:18.5]} 26... Bg6 {[%clk 0:02:07.2]} 27. h4 {[%clk 0:01:15.7]} 27... Ra2
{[%clk 0:02:02.3]} 28. Rd8+ {[%clk 0:01:10.5]} 28... Kh7 {[%clk 0:01:59.1]} 29.
h5 {[%clk 0:01:11.8]} 29... Rxc2 {[%clk 0:01:30.2]} 30. hxg6+ {[%clk 0:01:11.7]}
30... fxg6 {[%clk 0:01:32.1]} 31. Qg4 {[%clk 0:01:08.9]} 31... Rxd8 {[%clk
0:01:17.1]} 32. Rxd8 {[%clk 0:01:08.1]} 32... Qe1+ {[%clk 0:01:17.4]} 33. Kh2
{[%clk 0:01:06]} 33... Qxf2 {[%clk 0:01:19]} 34. Qh3 {[%clk 0:00:53.9]} 34...
Rc1 {[%clk 0:01:19.7]} 35. Qe6 {[%clk 0:00:51.7]} 35... h5 {[%clk 0:01:03.2]}
36. Qe8 {[%clk 0:00:36.5]} 36... Kh6 {[%clk 0:00:55.7]} 37. Qxe5 {[%clk
0:00:37.3]} 37... Kh7 {[%clk 0:00:47.9]} 38. Rd7 {[%clk 0:00:32]} 38... Qf8
{[%clk 0:00:35.4]} 39. Qf4 {[%clk 0:00:32.8]} 39... Qxf4 {[%clk 0:00:20.1]} 40.
gxf4 {[%clk 0:00:34.7]} 40... Rc3 {[%clk 0:00:21]} 41. Rc7 {[%clk 0:00:34.9]}
41... Rxb3 {[%clk 0:00:21.8]} 42. Rxc5 {[%clk 0:00:35.4]} 42... Kh6 {[%clk
0:00:22.2]} 43. e5 {[%clk 0:00:33.3]} 43... Re3 {[%clk 0:00:22.4]} 44. Rc4
{[%clk 0:00:33.7]} 44... g5 {[%clk 0:00:21.7]} 45. f5 {[%clk 0:00:33.3]} 45...
Rxe5 {[%clk 0:00:22.1]} 46. Rc6+ {[%clk 0:00:26.5]} 46... Kh7 {[%clk 0:00:22]}
47. Re6 {[%clk 0:00:27.2]} 47... Ra5 {[%clk 0:00:17.3]} 48. Be4 {[%clk
0:00:27.9]} 48... Kg8 {[%clk 0:00:17.6]} 49. Rg6 {[%clk 0:00:25.6]} 49... Re5
{[%clk 0:00:14.3]} 50. Bb1 {[%clk 0:00:24]} 50... Re2+ {[%clk 0:00:13.9]} 51.
Kg3 {[%clk 0:00:23.9]} 51... Re3+ {[%clk 0:00:15.1]} 52. Kf2 {[%clk 0:00:24.6]}
52... Rb3 {[%clk 0:00:16]} 53. Ba2 {[%clk 0:00:24.5]} 1-0

[Event "*** Titled Tuesday Blitz"]
[Site "Chess.com"]
[Date "2018.01.02"]
[Round "8"]
[White "Maili15"]
[Black "ChessicallyInclined"]
[Result "0-1"]
[WhiteElo "2281"]
[BlackElo "2221"]
[TimeControl "180+2"]
[EndTime "14:48:46 PST"]
[Termination "ChessicallyInclined won by checkmate"]

1. d4 {[%clk 0:03:01.9]} 1... d5 {[%clk 0:03:00.3]} 2. c4 {[%clk 0:03:03.2]}
2... e6 {[%clk 0:03:01.5]} 3. Nc3 {[%clk 0:03:03.9]} 3... Nf6 {[%clk 0:03:02.8]}
4. cxd5 {[%clk 0:03:05.1]} 4... exd5 {[%clk 0:03:03.3]} 5. Bg5 {[%clk
0:03:06.6]} 5... Be7 {[%clk 0:03:03.6]} 6. e3 {[%clk 0:03:08.1]} 6... c6 {[%clk
0:03:04]} 7. Bd3 {[%clk 0:03:09.3]} 7... Nbd7 {[%clk 0:03:04.7]} 8. Qc2 {[%clk
0:03:10.7]} 8... h6 {[%clk 0:03:05.7]} 9. Bh4 {[%clk 0:03:11.7]} 9... Nh5 {[%clk
0:03:06.9]} 10. Bxe7 {[%clk 0:03:13.3]} 10... Qxe7 {[%clk 0:03:08.7]} 11. Nge2
{[%clk 0:03:14.4]} 11... Nb6 {[%clk 0:03:09.8]} 12. h3 {[%clk 0:03:13.6]} 12...
Bd7 {[%clk 0:03:04.8]} 13. g4 {[%clk 0:03:14]} 13... Nf6 {[%clk 0:03:05.1]} 14.
O-O-O {[%clk 0:03:13.5]} 14... O-O-O {[%clk 0:03:04.7]} 15. Ng3 {[%clk 0:03:04]}
15... g6 {[%clk 0:03:03.2]} 16. Rhe1 {[%clk 0:03:02.5]} 16... Kb8 {[%clk
0:02:58.4]} 17. Kb1 {[%clk 0:03:00.1]} 17... Rhe8 {[%clk 0:02:35.1]} 18. f3
{[%clk 0:02:55.3]} 18... Nh7 {[%clk 0:02:30.9]} 19. e4 {[%clk 0:02:53]} 19...
Qh4 {[%clk 0:02:30.5]} 20. Qg2 {[%clk 0:02:48.8]} 20... dxe4 {[%clk 0:02:31.2]}
21. Ngxe4 {[%clk 0:02:35.6]} 21... f5 {[%clk 0:02:26.4]} 22. Nf2 {[%clk
0:02:18.5]} 22... Nf6 {[%clk 0:02:17]} 23. Re5 {[%clk 0:02:07.4]} 23... Nbd5
{[%clk 0:02:10.2]} 24. Nxd5 {[%clk 0:02:04.5]} 24... Nxd5 {[%clk 0:02:12.1]} 25.
Rde1 {[%clk 0:02:00.4]} 25... f4 {[%clk 0:01:59.8]} 26. Bxg6 {[%clk 0:01:32.6]}
26... Ne3 {[%clk 0:01:53.9]} 27. Qg1 {[%clk 0:01:07.5]} 27... Rxe5 {[%clk
0:01:50.2]} 28. dxe5 {[%clk 0:01:09.4]} 28... Be6 {[%clk 0:01:30.1]} 29. Nd3
{[%clk 0:01:02.6]} 29... Qg5 {[%clk 0:00:50.2]} 30. Nxf4 {[%clk 0:00:51.4]}
30... Qxf4 {[%clk 0:00:47.9]} 31. Qxe3 {[%clk 0:00:48.2]} 31... Rd1+ {[%clk
0:00:40.3]} 32. Kc2 {[%clk 0:00:48.8]} 32... Qa4+ {[%clk 0:00:37]} 33. b3 {[%clk
0:00:39.9]} 33... Rxe1 {[%clk 0:00:34.5]} 34. Qxe1 {[%clk 0:00:34.9]} 34...
Qxa2+ {[%clk 0:00:35.1]} 35. Kd3 {[%clk 0:00:26.6]} 35... Qxb3+ {[%clk
0:00:32.5]} 36. Ke4 {[%clk 0:00:19.6]} 36... Qc2+ {[%clk 0:00:31]} 37. Kf4
{[%clk 0:00:18.4]} 37... Qxg6 {[%clk 0:00:28.9]} 38. Qd1 {[%clk 0:00:19.3]}
38... Qf7+ {[%clk 0:00:26.7]} 39. Kg3 {[%clk 0:00:19.9]} 39... Bd5 {[%clk
0:00:28.1]} 40. f4 {[%clk 0:00:20.1]} 40... b5 {[%clk 0:00:23.7]} 41. f5 {[%clk
0:00:20.8]} 41... Kb7 {[%clk 0:00:23.4]} 42. Qe2 {[%clk 0:00:19.7]} 42... a5
{[%clk 0:00:21.8]} 43. e6 {[%clk 0:00:20.9]} 43... Qc7+ {[%clk 0:00:21.6]} 44.
Kh4 {[%clk 0:00:20.7]} 44... Qe7+ {[%clk 0:00:21.5]} 45. Kg3 {[%clk 0:00:21.3]}
45... a4 {[%clk 0:00:22.4]} 46. h4 {[%clk 0:00:17.4]} 46... a3 {[%clk
0:00:21.8]} 47. Qd1 {[%clk 0:00:13]} 47... a2 {[%clk 0:00:22.5]} 48. Qa1 {[%clk
0:00:13.6]} 48... Qa3+ {[%clk 0:00:21.6]} 49. Kf4 {[%clk 0:00:14.7]} 49... Qf3+
{[%clk 0:00:21.7]} 50. Ke5 {[%clk 0:00:15.8]} 50... Qe4+ {[%clk 0:00:23.2]} 51.
Kf6 {[%clk 0:00:16.7]} 51... Qb1 {[%clk 0:00:24.8]} 52. Qe5 {[%clk 0:00:13.6]}
52... a1=Q {[%clk 0:00:25.1]} 53. e7 {[%clk 0:00:14.2]} 53... Qxe5+ {[%clk
0:00:26.1]} 54. Kxe5 {[%clk 0:00:16.1]} 54... Qe4+ {[%clk 0:00:25.9]} 55. Kf6
{[%clk 0:00:18]} 55... b4 {[%clk 0:00:26]} 56. g5 {[%clk 0:00:18.9]} 56... hxg5
{[%clk 0:00:26.8]} 57. hxg5 {[%clk 0:00:20.8]} 57... b3 {[%clk 0:00:27.7]} 58.
g6 {[%clk 0:00:21.4]} 58... b2 {[%clk 0:00:28.9]} 59. g7 {[%clk 0:00:22]} 59...
b1=Q {[%clk 0:00:29.3]} 60. g8=Q {[%clk 0:00:18.5]} 60... Qxf5+ {[%clk
0:00:28.9]} 61. Kg7 {[%clk 0:00:19.8]} 61... Qg6+ {[%clk 0:00:30]} 62. Kf8
{[%clk 0:00:18.3]} 62... Qxg8# {[%clk 0:00:31.9]} 0-1

[Event "*** Titled Tuesday Blitz"]
[Site "Chess.com"]
[Date "2018.01.02"]
[Round "8"]
[White "Blitzstream"]
[Black "capatl"]
[Result "1-0"]
[WhiteElo "2510"]
[BlackElo "2380"]
[TimeControl "180+2"]
[EndTime "14:48:47 PST"]
[Termination "Blitzstream won by checkmate"]

1. e4 {[%clk 0:03:01.9]} 1... c5 {[%clk 0:02:59.9]} 2. Nf3 {[%clk 0:03:01.1]}
2... e6 {[%clk 0:03:01.2]} 3. b4 {[%clk 0:03:01.9]} 3... b6 {[%clk 0:03:00.6]}
4. bxc5 {[%clk 0:02:52.6]} 4... bxc5 {[%clk 0:03:00.9]} 5. Nc3 {[%clk
0:02:54.3]} 5... Nc6 {[%clk 0:02:59.6]} 6. g4 {[%clk 0:02:49.7]} 6... Bb7 {[%clk
0:02:51.1]} 7. Rb1 {[%clk 0:02:50.1]} 7... Rb8 {[%clk 0:02:52]} 8. Bg2 {[%clk
0:02:51.1]} 8... Be7 {[%clk 0:02:24.8]} 9. O-O {[%clk 0:02:39.2]} 9... h5 {[%clk
0:02:21.3]} 10. g5 {[%clk 0:02:25.6]} 10... Nd4 {[%clk 0:02:11.7]} 11. Nxd4
{[%clk 0:02:08.2]} 11... cxd4 {[%clk 0:02:12.1]} 12. Ne2 {[%clk 0:02:09.7]}
12... d3 {[%clk 0:02:07.5]} 13. cxd3 {[%clk 0:02:05.8]} 13... Bxg5 {[%clk
0:02:08.6]} 14. Bb2 {[%clk 0:01:49.9]} 14... Bf6 {[%clk 0:02:02.7]} 15. Ba3
{[%clk 0:00:56]} 15... Ba6 {[%clk 0:01:54.1]} 16. Rxb8 {[%clk 0:00:49.5]} 16...
Qxb8 {[%clk 0:01:54.4]} 17. Qc2 {[%clk 0:00:47.8]} 17... Ne7 {[%clk 0:01:37.1]}
18. Rb1 {[%clk 0:00:47.8]} 18... Qc8 {[%clk 0:01:36.8]} 19. Qxc8+ {[%clk
0:00:47.6]} 19... Nxc8 {[%clk 0:01:36.7]} 20. Nc1 {[%clk 0:00:24]} 20... Nb6
{[%clk 0:01:28.1]} 21. Bc5 {[%clk 0:00:25]} 21... Bd8 {[%clk 0:01:25.8]} 22. d4
{[%clk 0:00:25.6]} 22... Bc7 {[%clk 0:01:22.7]} 23. e5 {[%clk 0:00:26.5]} 23...
Bc4 {[%clk 0:01:22.2]} 24. d3 {[%clk 0:00:25.1]} 24... Ba6 {[%clk 0:01:20.5]}
25. Nb3 {[%clk 0:00:22.8]} 25... Bxd3 {[%clk 0:01:19.9]} 26. Rc1 {[%clk
0:00:21.5]} 26... Ba6 {[%clk 0:01:18.6]} 27. Nd2 {[%clk 0:00:22.3]} 27... f5
{[%clk 0:01:15.4]} 28. Nf3 {[%clk 0:00:18]} 28... Kf7 {[%clk 0:01:13.9]} 29.
Ng5+ {[%clk 0:00:19]} 29... Kg6 {[%clk 0:01:15.1]} 30. f4 {[%clk 0:00:19.4]}
30... Rc8 {[%clk 0:01:13.4]} 31. Bf3 {[%clk 0:00:20.4]} 31... Bd8 {[%clk
0:01:11.1]} 32. Kf2 {[%clk 0:00:18.4]} 32... Bxg5 {[%clk 0:01:08.2]} 33. fxg5
{[%clk 0:00:19.8]} 33... Na4 {[%clk 0:01:09.4]} 34. h4 {[%clk 0:00:18.3]} 34...
Nb2 {[%clk 0:01:05.7]} 35. Ke3 {[%clk 0:00:17.4]} 35... Nc4+ {[%clk 0:01:05]}
36. Kf4 {[%clk 0:00:16.8]} 36... Nb2 {[%clk 0:01:05.2]} 37. Rb1 {[%clk
0:00:16.2]} 37... Nd3+ {[%clk 0:01:04.9]} 38. Ke3 {[%clk 0:00:17.2]} 38... Nxc5
{[%clk 0:01:06.4]} 39. dxc5 {[%clk 0:00:18.4]} 39... Rxc5 {[%clk 0:01:07]} 40.
Kd4 {[%clk 0:00:18.5]} 40... Rc4+ {[%clk 0:01:07.7]} 41. Ke3 {[%clk 0:00:19.9]}
41... f4+ {[%clk 0:01:08.6]} 42. Kf2 {[%clk 0:00:20.5]} 42... Rc2+ {[%clk
0:01:09.1]} 43. Kg1 {[%clk 0:00:21.4]} 43... Bd3 {[%clk 0:01:10.1]} 44. Rd1
{[%clk 0:00:20.9]} 44... Bf5 {[%clk 0:01:06]} 45. Rxd7 {[%clk 0:00:20.8]} 45...
Rxa2 {[%clk 0:01:06.8]} 46. Re7 {[%clk 0:00:21]} 46... a5 {[%clk 0:01:04.5]} 47.
Bc6 {[%clk 0:00:22]} 47... a4 {[%clk 0:01:01.4]} 48. Be8+ {[%clk 0:00:22.9]}
48... Kh7 {[%clk 0:01:02.4]} 49. Bxh5 {[%clk 0:00:23.3]} 49... a3 {[%clk
0:01:02.9]} 50. Ra7 {[%clk 0:00:24.3]} 50... Ra1+ {[%clk 0:01:00.8]} 51. Kf2
{[%clk 0:00:24.9]} 51... a2 {[%clk 0:01:02]} 52. Bf3 {[%clk 0:00:22.9]} 52...
Bd3 {[%clk 0:00:52.1]} 53. h5 {[%clk 0:00:21.2]} 53... Bf5 {[%clk 0:00:45.6]}
54. Ra8 {[%clk 0:00:20.7]} 54... Bd3 {[%clk 0:00:29.2]} 55. Ra7 {[%clk
0:00:18.1]} 55... Kg8 {[%clk 0:00:26.5]} 56. g6 {[%clk 0:00:16]} 56... Kf8
{[%clk 0:00:26.6]} 57. Bc6 {[%clk 0:00:16.3]} 57... Bf5 {[%clk 0:00:27.3]} 58.
Ra8+ {[%clk 0:00:16.1]} 58... Ke7 {[%clk 0:00:28.3]} 59. Re8# {[%clk 0:00:18]}
1-0